[Event "1.FrauenBL 2018-19"]
[Site "Berlin"]
[Date "2019.03.03"]
[Round "11.5"]
[White "Zakurdjaeva, Irina"]
[Black "Wolf, Sylvia"]
[Result "1-0"]
[ECO "B92"]
[WhiteElo "2231"]
[BlackElo "1993"]
[Annotator "NA"]
[PlyCount "123"]
[EventDate "2018.10.27"]
[EventType "team-tourn"]
[EventCountry "GER"]
[SourceTitle "playchess.com"]
[Source "ChessBase"]
[SourceQuality "1"]
[WhiteTeam "Bad Koenigshofen"]
[BlackTeam "Pankow"]
[TimeControl "40/5400+30:1800+30"]

1. e4 {[%emt 0:00:10]} c5 {[%emt 0:00:09]} 2. Nf3 {[%emt 0:00:24]} d6 {[%emt 0:00:09]} 3. d4 {[%emt 0:00:07]} cxd4 {[%emt 0:00:05]} 4. Nxd4 {[%emt 0:00:00]} Nf6 {[%emt 0:00:21]} 5. Nc3 {[%emt 0:00:14]} a6 {[%emt 0:00:09]} 6. Be2 {[%emt 0:02:00]} e5 {[%emt 0:00:47]} 7. Nb3 {[%emt 0:00:00]} Be6 {[%emt 0:04:05]} 8. O-O {[%emt 0:06:21]} Qc7 {[%emt 0:00:00]} 9. Be3 {[%emt 0:04:35]} Nbd7 {[%emt 0:02:01]} 10. Kh1 {[%emt 0:07:04]} Be7 {[%emt 0:10:23]} 11. f4 {[%emt 0:03:43]} Rc8 {[%emt 0:05:19]} 12. f5 {[%emt 0:02:39]} Bc4 {[%emt 0:03:19]} 13. Bxc4 {[%emt 0:01:12]} Qxc4 {[%emt 0:00:43]} 14. Qf3 {[%emt 0:00:00]} h5 {[%emt 0:05:57]} 15. Rad1 {[%emt 0:06:46]} b5 {[%emt 0:12:38]} 16. a3 {[%emt 0:04:36]} h4 {[%emt 0:05:10]} 17. Rfe1 {[%emt 0:03:54]} Qc7 {[%emt 0:04:06]} 18. Nd2 {[%emt 0:06:24]} Qb7 {[%emt 0:03:25]} 19. Nf1 {[%emt 0:08:37]} Rxc3 {[%emt 0:03:14]} 20. bxc3 {[%emt 0:03:14]} Qxe4 {[%emt 0:00:00]} 21. Qxe4 {[%emt 0:10:17]} Nxe4 {[%emt 0:00:34]} 22. Bg1 {[%emt 0:10:30]} Nxc3 {[%emt 0:04:40]} 23. Rd3 {[%emt 0:00:00]} Na4 {[%emt 0:00:07]} 24. g4 {[%emt 0:01:42]} hxg3 25. Nxg3 {[%emt 0:00:07]} Nac5 {[%emt 0:08:03]} 26. Rd5 {[%emt 0:09:39]} Nf6 {[%emt 0:10:39]} 27. Rdd1 {[%emt 0:00:43]} Nfd7 {[%emt 0:01:12]} 28. Rd5 {[%emt 0:00:00]} Nf6 {[%emt 0:01:38]} 29. Rdd1 {[%emt 0:03:51]} Nfd7 {[%emt 0:00:08]} 30. Bxc5 {[%emt 0:00:42]} Nxc5 {[%emt 0:00:11]} 31. Ne4 {[%emt 0:00:14]} Nxe4 {[%emt 0:01:24]} 32. Rxe4 {[%emt 0:00:02]} Rh5 {[%emt 0:01:39]} 33. Rf1 {[%emt 0:00:34]} Rh4 {[%emt 0:01:58]} 34. Rxh4 {[%emt 0:00:00]} Bxh4 {[%emt 0:00:01]} 35. Rd1 {[%emt 0:03:59]} Ke7 {[%emt 0:00:14]} 36. Kg2 {[%emt 0:00:28]} Kd7 {[%emt 0:09:50]} 37. Kf3 {[%emt 0:00:42]} Kc6 {[%emt 0:00:42]} 38. Ke4 {[%emt 0:00:00]} Bf6 {[%emt 0:00:00]} 39. Rd3 {[%emt 0:00:40]} a5 {[%emt 0:02:46]} 40. Rc3+ {[%emt 0:01:36]} Kb6 {[%emt 0:01:09]} 41. Kd5 {[%emt 0:31:09]} b4 {[%emt 0:30:49]} 42. axb4 {[%emt 0:00:00]} a4 {[%emt 0:00:00]} 43. Rc8 {[%emt 0:00:00]} Kb7 {[%emt 0:00:00]} 44. Rc3 {[%emt 0:00:00]} Kb6 {[%emt 0:00:00]} 45. Ra3 {[%emt 0:00:00]} Kb5 {[%emt 0:00:00]} 46. c3 {[%emt 0:00:00]} Bg5 {[%emt 0:00:00]} 47. Ra2 {[%emt 0:00:00]} Bf4 {[%emt 0:00:00]} 48. h3 {[%emt 0:00:00]} f6 {[%emt 0:00:00]} 49. Kxd6 {[%emt 0:00:00]} e4+ {[%emt 0:00:00]} 50. Kd5 {[%emt 0:00:00]} e3 {[%emt 0:00:00]} 51. Ke4 {[%emt 0:00:00]} Be5 {[%emt 0:00:00]} 52. Kd3 {[%emt 0:00:00]} Bf4 {[%emt 0:00:00]} 53. h4 {[%emt 0:01:14]} Bh6 {[%emt 0:00:00]} 54. Ra1 {[%emt 0:03:29]} Bf4 {[%emt 0:00:00]} 55. h5 {[%emt 0:00:22]} Bg5 {[%emt 0:00:00]} 56. Rb1 {[%emt 0:02:28]} a3 {[%emt 0:01:08]} 57. c4+ {[%emt 0:00:04]} Ka4 {[%emt 0:00:35]} 58. b5 {[%emt 0:00:10]} a2 {[%emt 0:01:04]} 59. Ra1 {[%emt 0:00:06]} Kb3 {[%emt 0:00:21]} 60. c5 {[%emt 0:00:35]} Bf4 {[%emt 0:04:01]} 61. b6 {[%emt 0:00:00]} Kb2 {[%emt 0:00:25]} 62. Rxa2+ {[%emt 0:00:33] --- [%clk ] Ke4+ [%clk ]} 1-0

[Event "1.FrauenBL 2018-19"]
[Site "Berlin"]
[Date "2019.03.03"]
[Round "11.5"]
[White "Bluhm, Sonja Maria"]
[Black "Sieber, Fiona"]
[Result "1-0"]
[ECO "B20"]
[WhiteElo "2222"]
[BlackElo "2331"]
[Annotator "NA"]
[PlyCount "85"]
[EventDate "2018.10.27"]
[EventType "team-tourn"]
[EventCountry "GER"]
[SourceTitle "playchess.com"]
[Source "ChessBase"]
[SourceQuality "1"]
[WhiteTeam "Hofheim"]
[BlackTeam "SK Lehrte"]
[TimeControl "40/5400+30:1800+30"]

1. e4 {[%emt 0:00:06]} c5 {[%emt 0:00:04]} 2. d3 {[%emt 0:00:10]} Nc6 {[%emt 0:00:43]} 3. g3 {[%emt 0:00:25]} g6 {[%emt 0:00:22]} 4. Bg2 {[%emt 0:00:25]} Bg7 {[%emt 0:00:33]} 5. f4 {[%emt 0:00:40]} d6 {[%emt 0:00:47]} 6. Nf3 {[%emt 0:00:12]} Nf6 {[%emt 0:01:16]} 7. O-O {[%emt 0:00:13]} O-O {[%emt 0:00:35]} 8. c3 {[%emt 0:00:24]} Rb8 {[%emt 0:12:15]} 9. h3 {[%emt 0:01:00]} b5 {[%emt 0:02:23]} 10. g4 {[%emt 0:00:56]} b4 {[%emt 0:06:07]} 11. c4 {[%emt 0:03:01]} Ne8 {[%emt 0:10:17]} 12. Qe1 {[%emt 0:10:18]} Nd4 {[%emt 0:05:25]} 13. Nxd4 {[%emt 0:03:18]} Bxd4+ {[%emt 0:00:06]} 14. Kh1 {[%emt 0:00:11]} e6 {[%emt 0:13:14]} 15. Nd2 {[%emt 0:00:52]} f5 {[%emt 0:00:24]} 16. Nf3 {[%emt 0:08:42]} fxg4 {[%emt 0:05:54]} 17. hxg4 {[%emt 0:00:17]} Bg7 {[%emt 0:01:12]} 18. Qg3 {[%emt 0:05:52]} Qe7 {[%emt 0:01:51]} 19. Rf2 {[%emt 0:04:03]} Bb7 {[%emt 0:03:09]} 20. Be3 {[%emt 0:03:47]} Nf6 {[%emt 0:01:12]} 21. Nh4 {[%emt 0:08:23]} Nd7 {[%emt 0:03:11]} 22. Rg1 {[%emt 0:03:57]} Rbe8 {[%emt 0:02:38]} 23. g5 {[%emt 0:07:23]} Rf7 {[%emt 0:03:15]} 24. Bf3 {[%emt 0:05:24]} Nb8 {[%emt 0:02:37]} 25. Rh2 {[%emt 0:05:16]} Nc6 {[%emt 0:06:58]} 26. Qh3 {[%emt 0:01:57]} Bd4 {[%emt 0:00:43]} 27. Bxd4 {[%emt 0:15:12]} Nxd4 {[%emt 0:00:05]} 28. Nxg6 {[%emt 0:00:15]} Qc7 {[%emt 0:00:39]} 29. Bh5 {[%emt 0:05:19]} Rg7 {[%emt 0:02:19]} 30. Ne5 {[%emt 0:03:42]} Rf8 {[%emt 0:04:30]} 31. Ng4 {[%emt 0:00:13]} Rxf4 {[%emt 0:01:30]} 32. Nf6+ {[%emt 0:00:21]} Kf8 {[%emt 0:00:58]} 33. Bg4 {[%emt 0:00:50]} d5 {[%emt 0:06:33]} 34. Nh5 {[%emt 0:03:11]} dxe4 {[%emt 0:00:52]} 35. Nxf4 {[%emt 0:00:19]} Qxf4 {[%emt 0:00:11]} 36. Rf1 {[%emt 0:00:41]} Nf3 {[%emt 0:00:02]} 37. dxe4 {[%emt 0:00:26]} Rf7 {[%emt 0:00:57]} 38. Bxf3 {[%emt 0:00:33]} Bxe4 {[%emt 0:01:31]} 39. Bxe4 {[%emt 0:00:24]} Qxe4+ {[%emt 0:00:28]} 40. Kg1 {[%emt 0:00:11]} Qd4+ {[%emt 0:01:09]} 41. Rhf2 {[%emt 0:30:18]} Ke7 {[%emt 0:02:15]} 42. Qg3 {[%emt 0:00:00]} e5 {[%emt 0:01:48]} 43. Kh2 {[%emt 0:00:00]} 1-0

[Event "1.FrauenBL 2018-19"]
[Site "Berlin"]
[Date "2019.03.03"]
[Round "11.5"]
[White "Waechter, Nathalie"]
[Black "Miturova, Magdalena"]
[Result "1/2-1/2"]
[ECO "E33"]
[WhiteElo "2038"]
[BlackElo "2235"]
[Annotator "NA"]
[PlyCount "115"]
[EventDate "2018.10.27"]
[EventType "team-tourn"]
[EventCountry "GER"]
[SourceTitle "playchess.com"]
[Source "ChessBase"]
[SourceQuality "1"]
[WhiteTeam "TuRa Harksheide"]
[BlackTeam "Rodewischer SM"]
[TimeControl "40/5400+30:1800+30"]

1. d4 {[%emt 0:00:02]} Nf6 {[%emt 0:00:07]} 2. c4 {[%emt 0:00:07]} e6 {[%emt 0:00:06]} 3. Nc3 {[%emt 0:00:04]} Bb4 {[%emt 0:00:12]} 4. Qc2 {[%emt 0:00:06]} Nc6 {[%emt 0:00:13]} 5. Nf3 {[%emt 0:00:17]} d6 {[%emt 0:01:58]} 6. Bd2 {[%emt 0:00:14]} O-O {[%emt 0:01:01]} 7. a3 {[%emt 0:00:30]} Bxc3 {[%emt 0:00:13]} 8. Bxc3 {[%emt 0:00:06]} Qe7 {[%emt 0:20:28]} 9. e3 {[%emt 0:12:33]} a5 {[%emt 0:00:23]} 10. Be2 {[%emt 0:00:20]} d5 {[%emt 0:03:34]} 11. Nd2 {[%emt 0:19:56]} e5 {[%emt 0:11:21]} 12. dxe5 {[%emt 0:18:56]} Nxe5 {[%emt 0:00:11]} 13. cxd5 {[%emt 0:06:12]} Nxd5 {[%emt 0:01:28]} 14. Bxe5 {[%emt 0:00:04]} Qxe5 {[%emt 0:00:09]} 15. Nf3 {[%emt 0:01:28]} Qf6 {[%emt 0:13:10]} 16. Bd3 {[%emt 0:00:59]} g6 {[%emt 0:01:58]} 17. O-O {[%emt 0:00:23]} c6 {[%emt 0:06:15]} 18. Rad1 {[%emt 0:03:27]} Re8 {[%emt 0:04:30]} 19. Be4 {[%emt 0:01:15]} b6 {[%emt 0:12:39]} 20. Nd4 {[%emt 0:03:27]} Ba6 {[%emt 0:02:02]} 21. Rfe1 {[%emt 0:03:40]} Rac8 {[%emt 0:02:20]} 22. Bxd5 {[%emt 0:03:25]} cxd5 {[%emt 0:00:05]} 23. Qa4 {[%emt 0:03:02]} Re7 {[%emt 0:05:56]} 24. b4 {[%emt 0:08:54]} Rc4 {[%emt 0:00:44]} 25. Rc1 {[%emt 0:00:05]} Kg7 {[%emt 0:02:54]} 26. Rxc4 {[%emt 0:00:52]} Bxc4 {[%emt 0:00:37]} 27. h3 {[%emt 0:03:30]} axb4 {[%emt 0:01:44]} 28. Qxb4 {[%emt 0:00:41]} Bd3 {[%emt 0:04:12]} 29. Qd2 {[%emt 0:04:27]} Bc4 {[%emt 0:00:33]} 30. Rb1 {[%emt 0:00:29]} Ra7 {[%emt 0:01:26]} 31. Qb2 {[%emt 0:01:27]} h5 {[%emt 0:01:34]} 32. Qc3 {[%emt 0:03:16]} Kh7 {[%emt 0:00:47]} 33. Rc1 {[%emt 0:00:57]} Ra5 {[%emt 0:01:28]} 34. Qb4 {[%emt 0:00:37]} Kg7 {[%emt 0:00:19]} 35. Rb1 {[%emt 0:01:04]} Ra8 {[%emt 0:00:30]} 36. a4 {[%emt 0:00:46]} Bd3 {[%emt 0:00:40]} 37. Rb2 {[%emt 0:00:16]} Bc4 {[%emt 0:00:10]} 38. Qxb6 {[%emt 0:00:22]} Qxb6 {[%emt 0:00:09]} 39. Rxb6 {[%emt 0:00:03]} Rxa4 {[%emt 0:00:07]} 40. h4 {[%emt 0:00:12]} Ra7 {[%emt 0:01:35]} 41. Rd6 {[%emt 0:12:23]} Rb7 {[%emt 0:03:20]} 42. g3 {[%emt 0:00:26]} Bd3 {[%emt 0:08:25]} 43. Rc6 {[%emt 0:10:02]} Rb1+ {[%emt 0:01:29]} 44. Kg2 {[%emt 0:01:01]} Be4+ {[%emt 0:08:11]} 45. f3 {[%emt 0:00:04]} Bd3 {[%emt 0:01:57]} 46. g4 {[%emt 0:01:42]} hxg4 {[%emt 0:01:12]} 47. fxg4 {[%emt 0:00:35]} Be4+ {[%emt 0:03:24]} 48. Kg3 {[%emt 0:00:29]} Rg1+ {[%emt 0:02:22]} 49. Kf4 {[%emt 0:00:13]} Rf1+ {[%emt 0:02:26]} 50. Ke5 {[%emt 0:05:20]} Rh1 {[%emt 0:00:47]} 51. Rc7 {[%emt 0:01:11]} Rxh4 {[%emt 0:01:25]} 52. Ne6+ {[%emt 0:00:04]} Kg8 {[%emt 0:01:02]} 53. Ng5 {[%emt 0:02:25]} Rxg4 {[%emt 0:00:36]} 54. Kf6 {[%emt 0:00:32]} Rxg5 {[%emt 0:00:29]} 55. Kxg5 {[%emt 0:00:06]} Kg7 {[%emt 0:00:28]} 56. Rd7 {[%emt 0:00:50]} Bh1 {[%emt 0:00:33]} 57. Rd6 {[%emt 0:01:38]} Bg2 {[%emt 0:00:20]} 58. Rd7 {[%emt 0:00:50]} 1/2-1/2

[Event "1.FrauenBL 2018-19"]
[Site "Berlin"]
[Date "2019.03.03"]
[Round "11.6"]
[White "Hapala, Elisabeth"]
[Black "Agrest, Inna"]
[Result "0-1"]
[ECO "C78"]
[WhiteElo "2143"]
[BlackElo "2265"]
[Annotator "NA"]
[PlyCount "108"]
[EventDate "2018.10.27"]
[EventType "team-tourn"]
[EventCountry "GER"]
[SourceTitle "playchess.com"]
[Source "ChessBase"]
[SourceQuality "1"]
[WhiteTeam "SK Lehrte"]
[BlackTeam "Hofheim"]
[TimeControl "40/5400+30:1800+30"]

1. e4 {[%emt 0:00:02]} e5 {[%emt 0:00:00]} 2. Nf3 {[%emt 0:00:02]} Nc6 {[%emt 0:00:49]} 3. Bb5 {[%emt 0:00:03]} a6 {[%emt 0:00:44]} 4. Ba4 {[%emt 0:00:08]} Nf6 {[%emt 0:00:43]} 5. O-O {[%emt 0:00:06]} Bc5 {[%emt 0:00:00]} 6. c3 {[%emt 0:00:14]} b5 {[%emt 0:00:50]} 7. Bc2 {[%emt 0:00:15]} d5 {[%emt 0:00:41]} 8. d4 {[%emt 0:00:24]} dxe4 {[%emt 0:02:38]} 9. dxe5 {[%emt 0:00:24]} Qxd1 {[%emt 0:00:00]} 10. Rxd1 {[%emt 0:00:18]} exf3 {[%emt 0:30:42]} 11. exf6 {[%emt 0:35:11]} gxf6 {[%emt 0:00:39]} 12. Be4 {[%emt 0:00:00]} Bd7 {[%emt 0:00:38]} 13. Nd2 {[%emt 0:00:00]} O-O-O {[%emt 0:07:30]} 14. Nxf3 {[%emt 0:08:47]} Rhe8 {[%emt 0:09:18]} 15. Re1 {[%emt 0:00:00]} f5 {[%emt 0:03:49]} 16. Bc2 {[%emt 0:13:07]} Rxe1+ {[%emt 0:00:00]} 17. Nxe1 {[%emt 0:00:00]} Ne5 {[%emt 0:17:31]} 18. Bf4 {[%emt 0:00:00]} Ng6 {[%emt 0:04:31]} 19. Bg5 {[%emt 0:00:00]} Rg8 {[%emt 0:01:12]} 20. Nd3 {[%emt 0:00:00]} Bd6 {[%emt 0:00:32]} 21. Bf6 {[%emt 0:00:00]} c5 {[%emt 0:00:00]} 22. a4 {[%emt 0:00:00]} Kb7 {[%emt 0:00:00]} 23. axb5 {[%emt 0:03:16]} axb5 {[%emt 0:11:49]} 24. b4 {[%emt 0:00:07]} c4 {[%emt 0:00:47]} 25. Ne1 {[%emt 0:15:26]} Nf4 {[%emt 0:00:00]} 26. g3 {[%emt 0:07:36]} Rg6 {[%emt 0:04:53]} 27. Rd1 {[%emt 0:14:50]} Ne2+ {[%emt 0:00:00]} 28. Kf1 {[%emt 0:00:00]} Nxg3+ {[%emt 0:01:56]} 29. hxg3 {[%emt 0:01:56]} Rxf6 {[%emt 0:00:02]} 30. f4 {[%emt 0:00:00]} Kc7 {[%emt 0:02:00]} 31. Nf3 {[%emt 0:00:00]} Rh6 {[%emt 0:00:00]} 32. Nd4 {[%emt 0:00:00]} Rh5 {[%emt 0:01:36]} 33. Kg2 {[%emt 0:00:00]} Be7 {[%emt 0:00:14]} 34. Kf3 {[%emt 0:03:52]} Bf6 {[%emt 0:00:43]} 35. Bxf5 {[%emt 0:01:11]} Bxf5 {[%emt 0:00:38]} 36. Nxf5 {[%emt 0:00:02]} Bxc3 {[%emt 0:00:12]} 37. Kg4 {[%emt 0:01:10]} Rh2 {[%emt 0:00:10]} 38. Nd6 {[%emt 0:00:29]} Bxb4 {[%emt 0:00:50]} 39. Nxb5+ {[%emt 0:00:05]} Kb6 {[%emt 0:00:00]} 40. Nd6 {[%emt 0:00:55]} c3 {[%emt 0:00:49]} 41. Rb1 {[%emt 0:02:40]} c2 {[%emt 0:09:25]} 42. Rxb4+ {[%emt 0:00:24]} Kc5 {[%emt 0:00:04]} 43. Rc4+ {[%emt 0:00:08]} Kxd6 {[%emt 0:00:02]} 44. Kg5 {[%emt 0:05:49]} Kd5 {[%emt 0:00:00]} 45. Rc7 {[%emt 0:00:00]} Kd4 {[%emt 0:05:41]} 46. Kf6 {[%emt 0:00:22]} Kd3 {[%emt 0:00:17]} 47. Kxf7 {[%emt 0:00:11]} Rh1 {[%emt 0:07:42]} 48. f5 {[%emt 0:02:17]} c1=Q {[%emt 0:04:33]} 49. Rxc1 Rxc1 {[%emt 0:00:02]} 50. f6 {[%emt 0:01:53]} Ke4 {[%emt 0:01:56]} 51. Kg8 {[%emt 0:07:38]} h5 {[%emt 0:01:20]} 52. f7 {[%emt 0:00:24]} Rc8+ {[%emt 0:00:58]} 53. Kg7 {[%emt 0:00:28]} Kf5 {[%emt 0:00:49]} 54. Kh6 {[%emt 0:00:24]} Kf6 {[%emt 0:00:23]} 0-1

[Event "1.FrauenBL 2018-19"]
[Site "Berlin"]
[Date "2019.03.03"]
[Round "11.6"]
[White "Kubikova, Hana"]
[Black "Koehler, Inken"]
[Result "1/2-1/2"]
[ECO "D18"]
[WhiteElo "2058"]
[BlackElo "1992"]
[Annotator "NA"]
[PlyCount "77"]
[EventDate "2018.10.27"]
[EventType "team-tourn"]
[EventCountry "GER"]
[SourceTitle "playchess.com"]
[Source "ChessBase"]
[SourceQuality "1"]
[WhiteTeam "Rodewischer SM"]
[BlackTeam "TuRa Harksheide"]
[TimeControl "40/5400+30:1800+30"]

1. d4 {[%emt 0:00:00]} d5 {[%emt 0:00:06]} 2. Nf3 {[%emt 0:00:29]} Nf6 {[%emt 0:00:08]} 3. c4 {[%emt 0:00:54]} c6 {[%emt 0:00:12]} 4. Nc3 {[%emt 0:00:34]} dxc4 {[%emt 0:00:15]} 5. a4 {[%emt 0:00:55]} Bf5 {[%emt 0:01:41]} 6. e3 {[%emt 0:03:20]} e6 {[%emt 0:00:00]} 7. Bxc4 {[%emt 0:01:45]} Bb4 {[%emt 0:00:00]} 8. O-O {[%emt 0:00:00]} O-O {[%emt 0:00:12]} 9. Qb3 {[%emt 0:09:13]} Qb6 {[%emt 0:07:20]} 10. Na2 {[%emt 0:14:01]} Bd6 {[%emt 0:20:47]} 11. Bd2 {[%emt 0:06:43]} Nbd7 {[%emt 0:00:00]} 12. Rfc1 {[%emt 0:04:11]} Ne4 {[%emt 0:10:54]} 13. Be1 {[%emt 0:00:00]} a5 {[%emt 0:03:31]} 14. h3 {[%emt 0:05:50]} Qxb3 {[%emt 0:02:19]} 15. Bxb3 {[%emt 0:00:09]} Nb6 {[%emt 0:00:09]} 16. Nh4 {[%emt 0:02:21]} Bg6 {[%emt 0:02:21]} 17. Nxg6 {[%emt 0:04:38]} hxg6 {[%emt 0:01:34]} 18. Nc3 {[%emt 0:00:00]} Nf6 {[%emt 0:01:19]} 19. Nb1 {[%emt 0:14:25]} Nfd5 {[%emt 0:00:00]} 20. Na3 {[%emt 0:00:00]} Nb4 {[%emt 0:07:35]} 21. Nc4 {[%emt 0:03:13]} Nxc4 {[%emt 0:00:11]} 22. Bxc4 {[%emt 0:00:10]} Rfd8 {[%emt 0:11:47]} 23. Bxb4 {[%emt 0:04:05]} Bxb4 {[%emt 0:00:00]} 24. Rd1 {[%emt 0:00:00]} Rd7 {[%emt 0:07:00]} 25. Rac1 {[%emt 0:03:30]} Rad8 {[%emt 0:00:00]} 26. Bb3 {[%emt 0:00:57]} Be7 {[%emt 0:00:00]} 27. Kf1 {[%emt 0:02:47]} Ra8 {[%emt 0:04:19]} 28. Bc4 {[%emt 0:00:00]} Bf6 {[%emt 0:00:00]} 29. b3 {[%emt 0:02:23]} Rad8 {[%emt 0:00:00]} 30. Be2 {[%emt 0:01:52]} Be7 {[%emt 0:00:00]} 31. g3 {[%emt 0:01:30]} Ba3 {[%emt 0:00:20]} 32. Ra1 {[%emt 0:00:34]} Bb4 {[%emt 0:00:18]} 33. Rac1 {[%emt 0:00:21]} Kf8 {[%emt 0:00:44]} 34. Bf3 {[%emt 0:01:01]} Ke7 {[%emt 0:01:07]} 35. h4 {[%emt 0:00:00]} Kf6 {[%emt 0:03:45]} 36. Kg2 {[%emt 0:02:23]} e5 {[%emt 0:04:42]} 37. dxe5+ {[%emt 0:02:30]} Kxe5 38. Rxd7 {[%emt 0:00:00]} Rxd7 {[%emt 0:02:59]} 39. Rd1 {[%emt 0:02:15]} 1/2-1/2

[Event "1.FrauenBL 2018-19"]
[Site "Berlin"]
[Date "2019.03.03"]
[Round "11.6"]
[White "Jeske, Kirsten"]
[Black "Gromova, Iulia"]
[Result "1/2-1/2"]
[ECO "B13"]
[WhiteElo "1944"]
[BlackElo "2243"]
[Annotator "NA"]
[PlyCount "120"]
[EventDate "2018.10.27"]
[EventType "team-tourn"]
[EventCountry "GER"]
[SourceTitle "playchess.com"]
[Source "ChessBase"]
[SourceQuality "1"]
[WhiteTeam "Pankow"]
[BlackTeam "Bad Koenigshofen"]
[TimeControl "40/5400+30:1800+30"]

1. e4 {[%emt 0:00:03]} c6 {[%emt 0:00:06]} 2. d4 {[%emt 0:00:13]} d5 {[%emt 0:00:06]} 3. exd5 {[%emt 0:00:23]} cxd5 {[%emt 0:00:14]} 4. h3 {[%emt 0:00:57]} Nf6 {[%emt 0:00:42]} 5. Bd3 {[%emt 0:01:31]} Nc6 {[%emt 0:00:21]} 6. c3 {[%emt 0:01:06]} g6 {[%emt 0:00:48]} 7. Nf3 {[%emt 0:01:14]} Qc7 {[%emt 0:00:27]} 8. O-O Bg7 {[%emt 0:00:06]} 9. Re1 {[%emt 0:03:56]} O-O {[%emt 0:00:35]} 10. Bg5 {[%emt 0:02:03]} Bf5 {[%emt 0:03:51]} 11. Ne5 {[%emt 0:11:00]} Nxe5 {[%emt 0:10:47]} 12. dxe5 {[%emt 0:06:59]} Ne4 {[%emt 0:03:15]} 13. Bxe4 {[%emt 0:07:18]} Bxe4 {[%emt 0:00:53]} 14. Nd2 {[%emt 0:04:35]} Qxe5 {[%emt 0:09:27]} 15. Bh4 {[%emt 0:06:20]} e6 {[%emt 0:11:44]} 16. Bg3 {[%emt 0:10:12]} Qf5 {[%emt 0:13:58]} 17. Nxe4 {[%emt 0:01:09]} dxe4 {[%emt 0:00:00]} 18. Qe2 {[%emt 0:00:32]} Rfd8 {[%emt 0:00:00]} 19. Qxe4 {[%emt 0:00:27]} Qxe4 {[%emt 0:00:00]} 20. Rxe4 {[%emt 0:00:03]} Rd2 {[%emt 0:00:00]} 21. Rb4 {[%emt 0:02:33]} b6 {[%emt 0:00:00]} 22. Bf4 {[%emt 0:00:51]} Rd5 {[%emt 0:01:07]} 23. Rc4 {[%emt 0:00:53]} Rad8 {[%emt 0:06:30]} 24. Rc7 {[%emt 0:02:01]} R5d7 {[%emt 0:01:01]} 25. Rxd7 {[%emt 0:00:25]} Rxd7 {[%emt 0:00:01]} 26. Kf1 {[%emt 0:03:11]} f5 {[%emt 0:00:51]} 27. Re1 {[%emt 0:01:32]} Kf7 {[%emt 0:00:22]} 28. Be5 {[%emt 0:04:25]} Bxe5 {[%emt 0:03:25]} 29. Rxe5 {[%emt 0:00:01]} Rd2 {[%emt 0:00:23]} 30. Re2 {[%emt 0:00:10]} Rd1+ {[%emt 0:00:57]} 31. Re1 {[%emt 0:00:01]} Rd5 {[%emt 0:00:07]} 32. Ke2 {[%emt 0:02:30]} Rb5 {[%emt 0:02:07]} 33. b3 {[%emt 0:01:25]} g5 {[%emt 0:00:32]} 34. Rd1 {[%emt 0:01:45]} Ke7 {[%emt 0:00:41]} 35. Rd4 {[%emt 0:05:22]} h5 {[%emt 0:02:40]} 36. f3 {[%emt 0:05:07]} Rc5 {[%emt 0:01:39]} 37. c4 {[%emt 0:00:47]} Ra5 {[%emt 0:01:03]} 38. a4 {[%emt 0:01:05]} Re5+ {[%emt 0:00:34]} 39. Kf2 {[%emt 0:00:50]} h4 {[%emt 0:03:24]} 40. f4 {[%emt 0:02:07]} gxf4 {[%emt 0:03:56]} 41. Rxf4 {[%emt 0:33:48]} a6 {[%emt 0:31:13]} 42. Rxh4 {[%emt 0:01:28]} b5 {[%emt 0:00:08]} 43. cxb5 {[%emt 0:01:52]} axb5 {[%emt 0:00:05]} 44. axb5 {[%emt 0:01:17]} Rxb5 {[%emt 0:00:02]} 45. b4 {[%emt 0:00:26]} Kf6 {[%emt 0:01:36]} 46. Rc4 {[%emt 0:02:04]} Rb8 {[%emt 0:00:43]} 47. g4 {[%emt 0:03:23]} Ra8 {[%emt 0:02:43]} 48. gxf5 {[%emt 0:00:00]} Kxf5 {[%emt 0:00:00]} 49. h4 {[%emt 0:00:00]} Ra3 {[%emt 0:00:00]} 50. Rc5+ {[%emt 0:00:00]} e5 {[%emt 0:00:00]} 51. h5 {[%emt 0:00:00]} Rh3 {[%emt 0:00:00]} 52. b5 {[%emt 0:00:00]} Rxh5 {[%emt 0:00:00]} 53. b6 {[%emt 0:00:00]} Rh2+ {[%emt 0:00:00]} 54. Ke3 {[%emt 0:00:00]} Rb2 {[%emt 0:00:00]} 55. Rc6 {[%emt 0:00:00]} Rb3+ {[%emt 0:00:00]} 56. Kd2 {[%emt 0:00:00]} e4 {[%emt 0:00:00]} 57. Rh6 {[%emt 0:00:00]} Kf4 {[%emt 0:00:00]} 58. Rh4+ {[%emt 0:00:00]} Ke5 {[%emt 0:00:00]} 59. Rh6 {[%emt 0:00:00]} Kd4 {[%emt 0:00:00]} 60. Rd6+ {[%emt 0:00:00]} Kc5 {[%emt 0:00:00]} 1/2-1/2

[Event "1.FrauenBL 2018-19"]
[Site "Berlin"]
[Date "2019.03.03"]
[Round "11.7"]
[White "Socko, Monika"]
[Black "Exler, Veronika"]
[Result "1/2-1/2"]
[ECO "B13"]
[WhiteElo "2442"]
[BlackElo "2287"]
[Annotator "NA"]
[PlyCount "94"]
[EventDate "2018.10.27"]
[EventType "team-tourn"]
[EventCountry "GER"]
[SourceTitle "playchess.com"]
[Source "ChessBase"]
[SourceQuality "1"]
[WhiteTeam "Hamburger SK"]
[BlackTeam "FC Bayern Muenchen"]
[TimeControl "40/5400+30:1800+30"]

1. e4 {[%emt 0:00:03]} c6 {[%emt 0:00:06]} 2. d4 {[%emt 0:00:05]} d5 {[%emt 0:00:03]} 3. exd5 {[%emt 0:00:04]} cxd5 {[%emt 0:00:04]} 4. Bd3 {[%emt 0:00:06]} Nc6 {[%emt 0:00:00]} 5. c3 {[%emt 0:00:04]} Qc7 {[%emt 0:00:13]} 6. Ne2 {[%emt 0:00:13]} Bg4 {[%emt 0:00:28]} 7. O-O {[%emt 0:00:15]} e6 {[%emt 0:05:36]} 8. Qe1 {[%emt 0:00:34]} Bxe2 {[%emt 0:00:18]} 9. Qxe2 {[%emt 0:00:08]} Bd6 {[%emt 0:00:49]} 10. Qg4 {[%emt 0:00:25]} g6 {[%emt 0:13:57]} 11. Qh4 {[%emt 0:00:24]} Be7 {[%emt 0:02:48]} 12. Qh3 {[%emt 0:03:33]} Bf6 {[%emt 0:04:21]} 13. Na3 {[%emt 0:04:35]} Nge7 {[%emt 0:00:54]} 14. Bh6 {[%emt 0:21:46]} Nf5 {[%emt 0:02:41]} 15. Nb5 {[%emt 0:02:34]} Qd7 {[%emt 0:03:00]} 16. Bxf5 {[%emt 0:12:45]} gxf5 {[%emt 0:01:02]} 17. a4 {[%emt 0:00:54]} a6 {[%emt 0:00:34]} 18. Na3 {[%emt 0:00:06]} Rg8 {[%emt 0:12:07]} 19. b4 {[%emt 0:05:32]} Ne7 {[%emt 0:01:08]} 20. b5 {[%emt 0:04:15]} a5 {[%emt 0:01:48]} 21. Bd2 {[%emt 0:08:04]} b6 {[%emt 0:06:38]} 22. Qd3 {[%emt 0:01:55]} Rd8 {[%emt 0:07:31]} 23. Rfe1 {[%emt 0:02:51]} Rg4 {[%emt 0:02:23]} 24. Re3 {[%emt 0:03:15]} Kf8 {[%emt 0:11:55]} 25. Rg3 {[%emt 0:05:11]} Rxg3 {[%emt 0:02:05]} 26. Qxg3 {[%emt 0:00:22]} Ng6 {[%emt 0:00:17]} 27. Nc2 {[%emt 0:01:57]} Kg7 {[%emt 0:03:37]} 28. Re1 {[%emt 0:05:06]} Rg8 {[%emt 0:01:34]} 29. Qh3 {[%emt 0:01:52]} Kh8 {[%emt 0:00:36]} 30. Qh6 {[%emt 0:00:33]} Bg7 {[%emt 0:00:44]} 31. Qh5 {[%emt 0:00:16]} f4 {[%emt 0:02:19]} 32. Qg5 {[%emt 0:01:44]} Qc7 {[%emt 0:00:47]} 33. h4 {[%emt 0:01:38]} h6 {[%emt 0:03:38]} 34. Qh5 {[%emt 0:01:20]} Qc4 {[%emt 0:01:45]} 35. Qe2 {[%emt 0:05:02]} Qxe2 {[%emt 0:00:50]} 36. Rxe2 {[%emt 0:00:01]} f3 {[%emt 0:00:38]} 37. Re3 {[%emt 0:00:49]} fxg2 {[%emt 0:00:29]} 38. h5 {[%emt 0:03:43]} Nh4 {[%emt 0:06:06]} 39. Rh3 {[%emt 0:01:33]} Nf5 {[%emt 0:00:17]} 40. Bf4 {[%emt 0:02:29]} Rc8 {[%emt 0:02:15]} 41. Kxg2 {[%emt 0:30:59]} Rc4 {[%emt 0:15:00]} 42. Ne3 {[%emt 0:00:00]} Nxe3+ {[%emt 0:00:15]} 43. Rxe3 {[%emt 0:00:00]} Kh7 {[%emt 0:05:48]} 44. Rf3 {[%emt 0:00:00]} Kg8 {[%emt 0:03:26]} 45. Rg3 {[%emt 0:00:00]} Kh7 46. Rf3 {[%emt 0:00:00]} Kg8 {[%emt 0:00:05]} 47. Rg3 {[%emt 0:00:00]} Kh7 {[%emt 0:00:05]} 1/2-1/2